bitfinex-derivatives/quotes_SOLF0:USTF0_20260203
["timestamp","ask_amount","ask_price","bid_price","bid_amount"]
[1770149641827,33.64215581,98.471,98.404,142.4474]
[1770149642129,33.64215581,98.471,98.405,34.95166628]
[1770149642328,33.64215581,98.487,98.434,34.95166628]
[1770149642929,33.64215581,98.487,98.439,9.154]
[1770149643132,33.64215581,98.487,98.412,34.95166628]
[1770149643835,33.64215581,98.483,98.414,34.95166628]
[1770149644130,33.64215581,98.479,98.414,34.95166628]
[1770149644931,33.64215581,98.479,98.418,34.95166628]
[1770149645233,33.64215581,98.497,98.418,34.95166628]
[1770149645425,33.64215581,98.497,98.431,34.95166628]
[1770149645729,33.64215581,98.514,98.442,142.3922]
[1770149645933,33.64215581,98.514,98.458,34.95166628]
[1770149647530,33.64215581,98.511,98.458,34.95166628]
[1770149648540,33.64215581,98.479,98.391,34.95166628]
[1770149648931,42.79305581,98.474,98.403,34.95166628]
[1770149649233,33.64215581,98.473,98.403,34.95166628]
[1770149649429,9.1522,98.46,98.403,34.95166628]
[1770149649631,33.64215581,98.473,98.403,34.95166628]
[1770149650338,9.1513,98.469,98.403,34.95166628]
[1770149650534,33.64215581,98.49,98.403,34.95166628]
[1770149650940,9.1503,98.481,98.416,9.1562]
[1770149651140,9.1503,98.481,98.417,34.95166628]
[1770149651534,9.151,98.473,98.417,34.95166628]
[1770149652240,33.64215581,98.483,98.417,34.95166628]
[1770149654241,9.1502,98.481,98.417,34.95166628]
[1770149654840,33.64215581,98.48,98.417,34.95166628]
[1770149655038,33.64215581,98.471,98.4,34.95166628]
[1770149655241,33.64215581,98.439,98.364,34.95166628]
[1770149656144,33.64215581,98.432,98.364,34.95166628]
[1770149656738,33.64215581,98.432,98.375,34.95166628]
[1770149660643,35.08229116,98.429,98.373,9.1602]
[1770149660840,35.08229116,98.419,98.351,33.62658584]
[1770149661445,35.08229116,98.419,98.341,33.62658584]
[1770149661645,35.08229116,98.419,98.345,33.62658584]
[1770149662149,35.08229116,98.435,98.364,33.62658584]
[1770149663145,35.08229116,98.435,98.388,9.1588]
[1770149663551,35.08229116,98.435,98.364,33.62658584]
[1770149663949,9.1554,98.426,98.378,9.1597]
[1770149664950,35.08229116,98.434,98.378,9.1597]
[1770149665751,9.1536,98.444,98.389,33.62658584]
[1770149666054,35.08229116,98.443,98.389,33.62658584]
[1770149666853,35.08229116,98.443,98.367,33.62658584]
[1770149667244,35.08229116,98.432,98.367,33.62658584]
[1770149668148,35.08229116,98.43,98.367,33.62658584]
[1770149668645,35.08229116,98.449,98.37,33.62658584]
[1770149669349,9.1545,98.435,98.373,33.62658584]
[1770149670049,9.1547,98.433,98.373,33.62658584]
[1770149670251,35.08229116,98.432,98.373,33.62658584]
[1770149670648,35.08229116,98.432,98.325,18.65794006]
[1770149670649,35.08229116,98.426,98.347,33.62658584]
[1770149670853,35.08229116,98.409,98.347,33.62658584]
[1770149671054,35.08229116,98.409,98.351,33.62658584]
[1770149671846,35.08229116,98.409,98.355,33.62658584]
[1770149672156,35.08229116,98.428,98.355,33.62658584]
[1770149672551,35.08229116,98.428,98.371,9.1604]
[1770149672857,35.08229116,98.449,98.372,33.62658584]
[1770149673054,35.08229116,98.427,98.372,33.62658584]
[1770149673656,35.08229116,98.417,98.355,9.1618]
[1770149673853,35.08229116,98.409,98.354,33.62658584]
[1770149674053,35.08229116,98.409,98.32,33.62658584]
[1770149674455,35.08229116,98.427,98.347,33.62658584]
[1770149674658,35.08229116,98.427,98.35,33.62658584]
[1770149675252,44.23819116,98.42,98.35,33.62658584]
[1770149675949,44.23819116,98.42,98.374,9.1601]
[1770149677058,9.1562,98.417,98.374,9.1601]
[1770149677251,35.08229116,98.416,98.374,9.1601]
[1770149678454,35.08229116,98.409,98.35,33.62658584]
[1770149678657,35.08229116,98.409,98.334,33.62658584]
[1770149679648,9.1576,98.402,98.35,9.1623]
[1770149679854,35.08229116,98.401,98.35,9.1623]
[1770149681060,35.08229116,98.401,98.358,9.1616]
[1770149681963,35.08229116,98.419,98.368,9.1606]
[1770149682254,35.08229116,98.419,98.352,33.62658584]
[1770149682860,44.23909116,98.41,98.352,33.62658584]
[1770149683556,35.08229116,98.409,98.352,33.62658584]
[1770149684160,35.08229116,98.409,98.354,9.1619]
[1770149685163,35.08229116,98.409,98.359,9.1615]
[1770149686652,35.08229116,98.409,98.366,9.1608]
[1770149687053,35.08229116,98.409,98.355,33.62658584]
[1770149687255,35.08229116,98.409,98.365,9.1609]
[1770149687458,35.08229116,98.409,98.355,33.62658584]
[1770149688661,35.08229116,98.407,98.357,9.1617]
[1770149688870,8.59258398,98.4,98.308,142.5868]
[1770149689063,35.08229116,98.399,98.308,142.5868]
[1770149689368,35.08229116,98.381,98.331,9.1641]
[1770149690061,35.08229116,98.381,98.338,9.1634]
[1770149690264,35.08229116,98.381,98.308,142.5868]
[1770149690566,35.08229116,98.381,98.309,142.5852]
[1770149690771,35.08229116,98.381,98.31,35.08854298]
[1770149691266,35.08229116,98.381,98.327,35.08854298]
[1770149691669,35.13969091,98.399,98.345,9.1628]
[1770149691869,35.13969091,98.399,98.341,35.08854298]
[1770149692570,35.13969091,98.396,98.342,9.1631]
[1770149692764,35.13969091,98.396,98.343,35.08854298]
[1770149693674,35.13969091,98.396,98.358,9.1616]
[1770149694169,33.60237189,98.413,98.358,35.12222838]
[1770149694370,12.28590014,98.487,98.342,142.538]
[1770149694371,33.60237189,98.439,98.375,142.4903]
[1770149694569,33.60237189,98.439,98.38,35.12222838]
[1770149694964,33.60237189,98.439,98.381,35.12222838]
[1770149695374,8.59258398,98.46,98.381,35.12222838]
[1770149695575,33.60237189,98.459,98.381,35.12222838]
[1770149695874,33.60237189,98.457,98.382,35.12222838]
[1770149696266,33.60237189,98.479,98.39,35.12222838]
[1770149696465,42.75307189,98.476,98.403,35.12222838]
[1770149696669,33.60237189,98.475,98.403,35.12222838]
[1770149696977,33.60237189,98.475,98.41,35.12222838]
[1770149697169,8.59258398,98.5,98.41,35.12222838]
[1770149697170,33.60237189,98.499,98.41,35.12222838]
[1770149697976,9.1503,98.48,98.41,35.12222838]
[1770149698172,33.60237189,98.479,98.41,35.12222838]
[1770149698978,33.60237189,98.518,98.41,35.12222838]
[1770149700175,33.60237189,98.518,98.391,18.65794006]
[1770149700176,33.60237189,98.501,98.414,35.12222838]
[1770149700374,142.3081,98.502,98.414,35.12222838]
[1770149700375,33.60237189,98.499,98.414,35.12222838]
[1770149700880,33.60237189,98.484,98.414,35.12222838]
[1770149701075,142.3415,98.478,98.414,35.12222838]
[1770149701281,9.1518,98.464,98.414,35.12222838]
[1770149701473,33.60237189,98.477,98.414,35.12222838]
[1770149701673,405.62,98.492,98.414,35.12222838]
[1770149701878,33.60237189,98.491,98.414,35.12222838]
[1770149702282,9.1507,98.476,98.414,35.12222838]
[1770149703578,33.60237189,98.461,98.392,35.12222838]
[1770149703780,33.60237189,98.449,98.392,35.12222838]
[1770149704386,33.60237189,98.439,98.375,35.12222838]
[1770149704578,33.60237189,98.431,98.375,35.12222838]
[1770149705280,9.1557,98.422,98.375,35.12222838]
[1770149705475,142.3823,98.45,98.375,35.12222838]
[1770149705683,33.60237189,98.455,98.375,35.12222838]
[1770149705880,9.1537,98.444,98.377,35.12222838]
[1770149707780,9.1527,98.454,98.379,35.12222838]
[1770149708279,142.3063,98.503,98.379,35.12222838]
[1770149708280,33.60237189,98.449,98.379,35.12222838]
[1770149708985,9.1552,98.427,98.379,35.12222838]
[1770149709185,33.60237189,98.449,98.379,35.12222838]
[1770149709585,8.59258398,98.46,98.379,35.12222838]
[1770149710188,9.1534,98.447,98.384,35.12222838]
[1770149711788,9.1534,98.447,98.386,35.12222838]
[1770149712393,9.1525,98.456,98.39,35.12222838]
[1770149713389,9.1534,98.447,98.39,35.12222838]
[1770149713792,8.59258398,98.48,98.4,9.1577]
[1770149713986,33.60237189,98.485,98.401,35.12222838]
[1770149714489,9.1508,98.475,98.417,35.12222838]
[1770149715286,142.3216,98.492,98.417,35.12222838]
[1770149715287,33.60237189,98.47,98.417,35.12222838]
[1770149715688,33.60237189,98.47,98.395,35.12222838]
[1770149715888,9.153,98.452,98.395,35.12222838]
[1770149716692,9.1519,98.463,98.399,35.12222838]
[1770149717089,33.60237189,98.47,98.399,35.12222838]
[1770149717698,9.1514,98.469,98.404,35.12222838]
[1770149717888,33.60237189,98.47,98.404,35.12222838]
[1770149718593,9.1529,98.452,98.404,35.12222838]
[1770149719497,9.152,98.462,98.404,35.12222838]
[1770149720393,9.152,98.462,98.404,44.27952838]
[1770149720600,9.152,98.462,98.386,142.4736]
[1770149720601,9.152,98.462,98.405,34.4167976]
[1770149721391,33.60237189,98.47,98.405,34.4167976]
[1770149721897,33.70864542,98.487,98.406,34.4167976]
[1770149722397,33.70864542,98.487,98.413,34.4167976]
[1770149722698,33.70864542,98.483,98.413,34.4167976]
[1770149722890,8.59258398,98.48,98.413,34.4167976]
[1770149723093,9.1529,98.452,98.413,34.4167976]
[1770149724096,8.59258398,98.48,98.413,34.4167976]
[1770149724097,33.70864542,98.479,98.413,34.4167976]
[1770149724494,33.70864542,98.479,98.417,34.4167976]
[1770149725698,9.1505,98.478,98.419,34.4167976]
[1770149726599,9.1512,98.47,98.419,34.4167976]
[1770149726801,33.70864542,98.473,98.399,34.4167976]
[1770149727596,8.58381493,98.48,98.404,34.4167976]
[1770149727795,33.70864542,98.507,98.438,34.4167976]
[1770149727996,33.70864542,98.526,98.445,34.4167976]
[1770149728202,33.70864542,98.526,98.463,34.4167976]
[1770149728499,33.70864542,98.526,98.43,8.58381493]
[1770149728500,33.70864542,98.514,98.422,34.4167976]
[1770149728996,33.70864542,98.496,98.422,34.4167976]
[1770149729500,33.70864542,98.496,98.424,34.4167976]
[1770149730293,9.1483,98.502,98.44,34.4167976]
[1770149731100,9.1483,98.502,98.443,34.4167976]
[1770149731597,42.85694542,98.502,98.443,34.4167976]
[1770149732499,3.00321047,98.49,98.443,34.4167976]
[1770149732697,3.00321047,98.49,98.445,34.4167976]
[1770149732893,3.00321047,98.5,98.445,34.4167976]
[1770149733297,3.00321047,98.49,98.445,34.4167976]
[1770149733798,3.00321047,98.5,98.445,34.4167976]
[1770149733994,3.00321047,98.49,98.445,34.4167976]
[1770149734798,3.00321047,98.49,98.447,34.4167976]
[1770149735004,3.00321047,98.5,98.447,34.4167976]
[1770149735400,3.00321047,98.49,98.447,34.4167976]
[1770149735601,142.2757,98.524,98.421,34.4167976]
[1770149735602,3.00321047,98.47,98.421,34.4167976]
[1770149735906,3.00321047,98.46,98.421,34.4167976]
[1770149736402,3.00321047,98.47,98.421,34.4167976]
[1770149736700,3.00321047,98.49,98.44,34.4167976]
[1770149737696,33.70864542,98.489,98.41,34.4167976]
[1770149737900,3.00321047,98.46,98.41,34.4167976]
[1770149738708,3.00321047,98.45,98.411,34.4167976]
[1770149739404,3.00321047,98.46,98.411,34.4167976]
[1770149739803,3.00321047,98.45,98.414,34.4167976]
[1770149740410,3.00321047,98.45,98.396,34.4167976]
[1770149740609,3.00321047,98.43,98.396,34.4167976]
[1770149740810,3.00321047,98.42,98.396,34.4167976]
[1770149741499,3.00321047,98.42,98.352,18.65794006]
[1770149741705,3.00321047,98.39,98.353,34.4167976]
[1770149741907,3.00321047,98.38,98.337,34.4167976]
[1770149742217,3.00321047,98.35,98.309,34.4167976]
[1770149742404,33.70864542,98.384,98.309,34.4167976]
[1770149742405,8.60344214,98.38,98.309,34.4167976]
[1770149742605,142.4911,98.375,98.309,34.4167976]
[1770149742809,33.70864542,98.359,98.285,2.77948636]
[1770149743011,33.70864542,98.359,98.286,34.4167976]
[1770149744009,33.70864542,98.356,98.288,34.4167976]
[1770149744711,33.70864542,98.339,98.285,2.77948636]
[1770149744914,33.70864542,98.335,98.285,2.77948636]
[1770149745514,8.60344214,98.34,98.285,37.19628396]
[1770149745912,33.70864542,98.339,98.285,37.19628396]
[1770149746114,33.70864542,98.339,98.285,2.77948636]
[1770149747512,33.70864542,98.339,98.285,37.19628396]
[1770149748214,9.1622,98.353,98.285,37.19628396]
[1770149748519,33.70864542,98.352,98.285,37.19628396]
[1770149748715,33.70864542,98.352,98.285,2.77948636]
[1770149748907,33.70864542,98.352,98.221,142.7136]
[1770149748908,142.5721,98.319,98.241,34.4167976]
[1770149749108,33.70864542,98.318,98.241,34.4167976]
[1770149749307,33.70864542,98.318,98.242,9.1724]
[1770149749513,33.70864542,98.355,98.271,34.4167976]
[1770149749720,33.70864542,98.355,98.273,34.4167976]
[1770149750416,33.70864542,98.355,98.281,34.4167976]
[1770149750813,33.70864542,98.355,98.286,32.2287271]
[1770149752820,30.38040113,98.351,98.286,32.2287271]
[1770149753016,8.60344214,98.34,98.286,32.2287271]
[1770149753717,30.38040113,98.339,98.286,32.2287271]
[1770149753918,30.38040113,98.356,98.286,32.2287271]
[1770149754416,31.71764317,98.373,98.302,9.1668]
[1770149754616,31.71764317,98.373,98.304,31.93129721]
[1770149755818,31.71764317,98.369,98.304,31.93129721]
[1770149756318,8.60344214,98.38,98.304,31.93129721]
[1770149756319,31.71764317,98.362,98.304,31.93129721]
[1770149757522,9.1617,98.357,98.304,31.93129721]
[1770149757728,31.71764317,98.356,98.294,9.1676]
[1770149758019,31.71764317,98.356,98.295,31.93129721]
[1770149758217,31.71764317,98.356,98.297,31.93129721]
[1770149761620,31.71764317,98.356,98.3,9.167]
[1770149761830,31.71764317,98.356,98.301,31.93129721]
[1770149762017,31.71764317,98.374,98.301,31.93129721]
[1770149762217,31.71764317,98.409,98.323,31.93129721]
[1770149762821,31.71764317,98.394,98.323,31.93129721]
[1770149763419,9.1595,98.381,98.323,31.93129721]
[1770149763625,31.71764317,98.38,98.323,31.93129721]
[1770149763827,9.1607,98.369,98.306,31.93129721]
[1770149764031,31.71764317,98.368,98.306,31.93129721]
[1770149764222,31.71764317,98.386,98.311,31.93129721]
[1770149764419,8.60344214,98.4,98.331,31.93129721]
[1770149764619,31.71764317,98.403,98.331,31.93129721]
[1770149764819,31.71764317,98.403,98.342,31.93129721]
[1770149765019,9.155,98.43,98.36,31.93129721]
[1770149765220,31.71764317,98.43,98.36,31.93129721]
[1770149765525,31.71764317,98.43,98.367,31.93129721]
[1770149766125,31.71764317,98.429,98.367,31.93129721]
[1770149767430,9.1552,98.427,98.367,31.93129721]
[1770149769930,9.1559,98.42,98.367,31.93129721]
[1770149770725,9.155,98.43,98.367,31.93129721]
[1770149771321,9.1541,98.439,98.371,31.93129721]
[1770149771525,31.71764317,98.467,98.381,31.93129721]
[1770149771930,9.1523,98.459,98.395,31.93129721]
[1770149772122,31.71764317,98.458,98.395,31.93129721]
[1770149772625,9.1526,98.456,98.395,31.93129721]
[1770149772821,40.87024317,98.456,98.395,31.93129721]
[1770149773025,31.71764317,98.474,98.395,31.93129721]
[1770149773323,9.1496,98.488,98.417,31.93129721]
[1770149773520,31.71764317,98.487,98.417,31.93129721]
[1770149773923,9.1501,98.482,98.421,9.1557]
[1770149774125,9.1501,98.482,98.422,31.93129721]
[1770149774633,31.71764317,98.487,98.422,31.93129721]
[1770149775130,31.71764317,98.482,98.422,31.93129721]
[1770149775331,31.71764317,98.459,98.386,31.93129721]
[1770149775530,9.1531,98.451,98.386,31.93129721]
[1770149776735,9.1531,98.451,98.388,31.93129721]
[1770149778431,9.1531,98.451,98.39,31.93129721]
[1770149779831,31.71764317,98.487,98.394,31.93129721]
[1770149780035,31.71764317,98.487,98.39,142.4676]
[1770149780036,31.71764317,98.487,98.407,31.93129721]
[1770149780536,9.1501,98.483,98.426,9.1553]
[1770149780733,38.48489458,98.483,98.426,9.1553]
[1770149781637,38.48489458,98.483,98.423,31.83951989]
[1770149781831,29.33479458,98.483,98.423,31.83951989]
[1770149782733,29.33479458,98.464,98.369,31.83951989]
[1770149782936,29.33479458,98.446,98.369,31.83951989]
[1770149783237,9.1546,98.434,98.373,31.83951989]
[1770149783431,29.33479458,98.433,98.373,31.83951989]
[1770149783630,142.3744,98.456,98.373,31.83951989]
[1770149783631,29.33479458,98.429,98.373,31.83951989]
[1770149784140,29.33479458,98.445,98.384,9.1592]
[1770149784638,29.33479458,98.445,98.385,31.83951989]
[1770149785429,9.1539,98.442,98.385,31.83951989]
[1770149785738,29.33479458,98.441,98.385,31.83951989]
[1770149786137,29.33479458,98.426,98.354,31.83951989]
[1770149786730,9.1556,98.423,98.354,31.83951989]
[1770149787134,29.33479458,98.422,98.354,31.83951989]
[1770149787535,8.60344214,98.43,98.354,31.83951989]
[1770149787536,29.33479458,98.407,98.354,31.83951989]
[1770149788733,9.1579,98.399,98.354,31.83951989]
[1770149790439,29.33479458,98.407,98.354,31.83951989]
[1770149791341,29.33479458,98.407,98.346,9.1627]
[1770149791342,9.1557,98.422,98.363,31.83951989]
[1770149791932,8.59843792,98.43,98.372,40.99981989]
[1770149792134,29.33479458,98.449,98.373,31.83951989]
[1770149792338,29.33479458,98.449,98.377,31.83951989]
[1770149792839,9.1545,98.435,98.377,31.83951989]
[1770149793041,29.33479458,98.429,98.358,31.83951989]
[1770149793238,9.1551,98.428,98.367,9.1608]
[1770149793538,29.33479458,98.429,98.368,31.83951989]
[1770149793934,29.33479458,98.429,98.342,142.5371]
[1770149793935,29.33479458,98.429,98.371,31.83951989]
[1770149795445,9.1555,98.424,98.371,31.83951989]
[1770149795836,29.33479458,98.429,98.371,31.83951989]
[1770149796747,8.59843792,98.41,98.333,31.83951989]
[1770149797137,29.33479458,98.444,98.372,31.83951989]
[1770149797341,8.59843792,98.43,98.372,31.83951989]
[1770149797642,29.33479458,98.429,98.372,31.83951989]
[1770149798845,9.1557,98.423,98.372,31.83951989]
[1770149799643,142.3897,98.445,98.338,142.5436]
[1770149799644,9.1544,98.436,98.378,31.83951989]
[1770149800947,29.33479458,98.447,98.379,40.99911989]
[1770149802651,9.1544,98.437,98.387,9.1588]
[1770149802840,9.1544,98.437,98.379,31.83951989]
[1770149802841,29.33479458,98.447,98.379,31.83951989]
[1770149803044,29.33479458,98.447,98.381,31.83951989]
[1770149804346,29.33479458,98.447,98.4,9.1577]
[1770149805847,9.1521,98.461,98.408,9.1569]
[1770149806048,38.48689458,98.461,98.408,9.1569]
[1770149806252,8.59843792,98.47,98.408,9.1569]
[1770149806253,29.33479458,98.46,98.408,9.1569]
[1770149806745,29.33479458,98.469,98.4,31.83951989]
[1770149807850,29.33479458,98.46,98.4,31.83951989]
[1770149808643,9.1525,98.456,98.402,9.1575]
[1770149809049,29.33479458,98.449,98.379,31.83951989]
[1770149809258,9.1538,98.443,98.388,31.83951989]
[1770149809951,9.1545,98.435,98.388,31.83951989]
[1770149810353,9.1545,98.435,98.389,9.1587]
[1770149810542,9.1537,98.443,98.39,30.63863234]
[1770149811352,9.1544,98.436,98.39,30.63863234]
[1770149812352,28.49115955,98.429,98.372,30.63863234]
[1770149812557,28.49115955,98.429,98.355,30.63863234]
[1770149812956,8.59843792,98.41,98.355,30.63863234]
[1770149813350,8.59843792,98.41,98.357,30.63863234]
[1770149813755,28.49115955,98.429,98.357,30.63863234]
[1770149814057,37.64705955,98.42,98.357,30.63863234]
[1770149814256,28.49115955,98.42,98.357,30.63863234]
[1770149814758,28.54303069,98.437,98.377,28.68542344]
[1770149815159,28.54303069,98.437,98.386,9.159]
[1770149815959,9.1533,98.448,98.39,28.68542344]
[1770149816563,37.69633069,98.448,98.39,28.68542344]
[1770149816761,28.54303069,98.469,98.392,28.68542344]
[1770149817062,28.54303069,98.469,98.394,28.68542344]
[1770149817258,28.54303069,98.469,98.419,9.1559]
[1770149818258,28.54303069,98.506,98.426,28.68542344]
[1770149819666,9.1491,98.493,98.437,9.1542]
[1770149820463,28.54303069,98.502,98.446,9.1534]
[1770149821162,28.54303069,98.52,98.452,28.68542344]
[1770149821363,28.54303069,98.539,98.474,28.68542344]
[1770149821664,142.2022,98.575,98.46,142.3668]
[1770149821665,28.54303069,98.553,98.48,28.68542344]
[1770149822660,9.1445,98.542,98.482,28.68542344]
[1770149822866,28.54303069,98.553,98.482,28.68542344]
[1770149823062,28.54303069,98.553,98.489,28.68542344]
[1770149823262,28.54303069,98.591,98.522,28.68542344]
[1770149823461,28.54303069,98.591,98.529,28.68542344]
[1770149823656,8.59843792,98.6,98.542,142.2478]
[1770149823964,142.0808,98.659,98.558,28.68542344]
[1770149823965,8.59843792,98.64,98.558,28.68542344]
[1770149824160,151.2452,98.639,98.558,28.68542344]
[1770149824363,142.1472,98.613,98.538,28.68542344]
[1770149824565,8.59843792,98.6,98.514,28.68542344]
[1770149824866,9.1394,98.598,98.514,37.83252344]
[1770149825064,9.1394,98.598,98.515,28.68542344]
[1770149825259,8.59843792,98.58,98.515,28.68542344]
[1770149825463,8.59843792,98.58,98.494,28.68542344]
[1770149825464,8.59843792,98.56,98.494,28.68542344]
[1770149828669,28.54303069,98.499,98.435,28.68542344]
[1770149828867,28.54303069,98.519,98.437,28.68542344]
[1770149829268,28.54303069,98.519,98.424,142.418]
[1770149829269,28.54303069,98.519,98.445,37.83882344]
[1770149829475,28.54303069,98.514,98.425,28.68542344]
[1770149829670,8.59843792,98.51,98.433,28.68542344]
[1770149829971,8.59843792,98.51,98.437,9.1543]
[1770149829972,28.54303069,98.508,98.437,9.1543]
[1770149830164,28.54303069,98.508,98.438,28.68542344]
[1770149830570,28.54303069,98.508,98.439,9.154]
[1770149831267,28.54303069,98.506,98.438,28.68542344]
[1770149832371,28.54303069,98.501,98.438,28.68542344]
[1770149832973,9.1487,98.497,98.438,28.68542344]
[1770149833867,28.54303069,98.501,98.44,28.68542344]
[1770149834473,28.54303069,98.501,98.422,28.68542344]
[1770149835570,9.1486,98.499,98.422,28.68542344]
[1770149835767,8.59843792,98.49,98.422,28.68542344]
[1770149836273,8.59843792,98.49,98.426,28.68542344]
[1770149836674,8.59843792,98.52,98.439,28.68542344]
[1770149836872,28.54303069,98.519,98.454,37.83802344]
[1770149837376,28.54303069,98.543,98.478,9.1504]
[1770149837569,28.54303069,98.562,98.49,28.68542344]
[1770149837870,8.59843792,98.58,98.504,28.68542344]
[1770149838068,28.54303069,98.572,98.504,28.68542344]
[1770149838261,28.54303069,98.572,98.456,142.3728]
[1770149838262,28.54303069,98.559,98.478,28.68542344]
[1770149838466,28.54303069,98.557,98.478,28.68542344]
[1770149838770,28.54303069,98.554,98.48,28.68542344]
[1770149839473,28.54303069,98.554,98.456,142.3728]
[1770149839474,28.54303069,98.554,98.484,28.68542344]
[1770149839770,28.54303069,98.575,98.504,28.68542344]
[1770149840366,28.54303069,98.559,98.482,28.68542344]
[1770149841173,8.59843792,98.54,98.482,28.68542344]
[1770149841475,8.59843792,98.54,98.472,9.151]
[1770149841476,28.25586157,98.539,98.472,9.151]
[1770149841677,28.25586157,98.535,98.462,29.03464348]
[1770149842475,8.59843792,98.54,98.474,29.03464348]
[1770149842680,28.25586157,98.556,98.48,29.03464348]
[1770149843271,9.1434,98.554,98.48,29.03464348]
[1770149844078,28.25586157,98.556,98.494,38.18364348]
[1770149844280,28.25586157,98.556,98.494,29.03464348]
[1770149844468,28.25586157,98.577,98.523,9.1462]
[1770149845175,28.25586157,98.577,98.503,29.03464348]
[1770149845968,9.1425,98.565,98.503,29.03464348]
[1770149846168,8.59843792,98.56,98.503,29.03464348]
[1770149847776,9.143,98.559,98.503,29.03464348]
[1770149847976,8.59843792,98.56,98.504,9.148]
[1770149848173,405.24,98.58,98.514,29.03464348]
[1770149848370,28.25586157,98.584,98.516,29.03464348]
[1770149848578,28.25586157,98.605,98.535,38.17984348]
[1770149848781,28.25586157,98.589,98.515,29.03464348]
[1770149849271,28.25586157,98.574,98.494,29.03464348]
[1770149849670,8.59843792,98.57,98.5,29.03464348]
[1770149850070,8.59843792,98.57,98.489,142.325]
[1770149850071,28.25586157,98.574,98.503,29.03464348]
[1770149850269,28.25586157,98.574,98.522,9.1463]
[1770149850472,28.25586157,98.574,98.503,29.03464348]
[1770149850673,28.25586157,98.574,98.506,9.1478]
[1770149850674,9.1422,98.567,98.506,9.1478]
[1770149850873,28.25586157,98.574,98.507,29.03464348]
[1770149851082,8.56702726,98.59,98.512,29.03464348]
[1770149851373,8.56702726,98.61,98.543,29.03464348]
[1770149851580,28.25586157,98.609,98.543,29.03464348]
[1770149852382,28.25586157,98.606,98.546,9.1441]
[1770149852585,28.25586157,98.606,98.543,29.03464348]
[1770149852983,28.25586157,98.606,98.546,9.1441]
[1770149854076,28.25586157,98.606,98.561,9.1427]
[1770149854274,17.70432726,98.62,98.561,9.1427]
[1770149854275,9.1373,98.62,98.561,9.1427]
[1770149854479,28.25586157,98.627,98.562,29.03464348]
[1770149854881,28.25586157,98.626,98.562,29.03464348]
[1770149855083,28.25586157,98.623,98.542,29.03464348]
[1770149855283,28.25586157,98.609,98.542,29.03464348]
[1770149855478,8.56702726,98.59,98.523,29.03464348]
[1770149855678,8.56702726,98.59,98.501,142.3074]
[1770149855679,28.25586157,98.589,98.502,29.03464348]
[1770149856179,28.25586157,98.569,98.502,29.03464348]
[1770149856580,28.25586157,98.567,98.502,29.03464348]
[1770149857381,9.1427,98.562,98.503,29.03464348]
[1770149857585,8.56702726,98.57,98.49,142.3239]
[1770149857586,8.56702726,98.57,98.509,29.03464348]
[1770149857886,8.56702726,98.57,98.517,9.1468]
[1770149858094,28.25586157,98.569,98.49,29.03464348]
[1770149858485,9.143,98.559,98.507,9.1478]
[1770149858685,28.25586157,98.558,98.49,29.03464348]
[1770149858889,28.25586157,98.549,98.471,29.03464348]
[1770149859191,28.25586157,98.547,98.471,29.03464348]
[1770149860092,9.1449,98.539,98.483,9.15]
[1770149860989,28.25586157,98.547,98.494,9.149]
[1770149861188,28.25586157,98.547,98.482,29.03464348]
[1770149861387,9.1442,98.545,98.493,9.149]
[1770149861792,8.56702726,98.55,98.488,29.03464348]
[1770149861992,28.25586157,98.568,98.513,9.1471]
[1770149862390,8.56702726,98.59,98.518,29.03464348]
[1770149862695,8.56702726,98.63,98.561,29.03464348]
[1770149862901,28.25586157,98.637,98.571,29.03464348]
[1770149863197,28.25586157,98.627,98.556,29.03464348]
[1770149863897,28.25586157,98.649,98.58,29.03464348]
[1770149864096,28.25586157,98.649,98.583,142.1896]
[1770149864995,28.25586157,98.669,98.589,29.03464348]
[1770149865198,28.25586157,98.659,98.589,29.03464348]
[1770149865891,8.56702726,98.64,98.564,29.03464348]
[1770149866098,28.25586157,98.637,98.564,29.03464348]
[1770149866289,9.137,98.623,98.564,29.03464348]
[1770149866597,28.25586157,98.644,98.564,29.03464348]
[1770149867200,37.39096157,98.644,98.581,9.1408]
[1770149867397,28.25586157,98.643,98.581,9.1408]
[1770149867994,28.25586157,98.643,98.569,9.1419]
[1770149868398,28.25586157,98.639,98.569,9.1419]
[1770149868601,28.25586157,98.636,98.564,29.03464348]
[1770149869599,8.56702726,98.63,98.564,29.03464348]
[1770149869797,28.25586157,98.636,98.564,29.03464348]
[1770149870100,8.56702726,98.65,98.584,171.22254348]
[1770149870301,28.25586157,98.66,98.589,29.03464348]
[1770149870492,28.25586157,98.66,98.591,170.97806105]
[1770149870697,28.25586157,98.66,98.599,9.1392]
[1770149871093,28.25586157,98.66,98.591,28.80106105]
[1770149871294,9.1346,98.649,98.591,28.80106105]
[1770149873398,8.56702726,98.65,98.591,28.80106105]
[1770149873597,28.25586157,98.66,98.595,28.80106105]
[1770149873800,404.96,98.667,98.612,9.138]